[Event "*** SCC Grand Prix: Titled Tuesday Blitz"]
[Site "Chess.com"]
[Date "2020.06.09"]
[Round "3"]
[White "Belka1989"]
[Black "chito89"]
[Result "1/2-1/2"]
[WhiteElo "2457"]
[BlackElo "2733"]
[TimeControl "180+1"]
[EndTime "9:29:19 PDT"]
[Termination "Game drawn by agreement"]

1. e4 {[%clk 0:03:00.9]} 1... e5 {[%clk 0:02:48.5]} 2. d4 {[%clk 0:03:00.9]}
2... exd4 {[%clk 0:02:48.3]} 3. Bc4 {[%clk 0:03:01.2]} 3... Nf6 {[%clk
0:02:43.1]} 4. Nf3 {[%clk 0:03:01.6]} 4... Nc6 {[%clk 0:02:26.5]} 5. O-O {[%clk
0:03:01.4]} 5... Nxe4 {[%clk 0:02:23.7]} 6. Nc3 {[%clk 0:03:01.6]} 6... Nd6
{[%clk 0:02:04.7]} 7. Re1+ {[%clk 0:02:09.9]} 7... Be7 {[%clk 0:02:01.1]} 8. Nd5
{[%clk 0:02:10.2]} 8... Nxc4 {[%clk 0:01:44.8]} 9. Nxe7 {[%clk 0:02:10.3]} 9...
Nxe7 {[%clk 0:01:44]} 10. Qxd4 {[%clk 0:02:11]} 10... O-O {[%clk 0:01:41.6]} 11.
Qxc4 {[%clk 0:02:10.8]} 11... d5 {[%clk 0:01:40.6]} 12. Qc3 {[%clk 0:02:04]}
12... Ng6 {[%clk 0:01:36.6]} 13. Be3 {[%clk 0:01:58.8]} 13... b6 {[%clk
0:01:30.5]} 14. a4 {[%clk 0:01:56.6]} 14... c5 {[%clk 0:01:29.9]} 15. Qd2 {[%clk
0:01:38]} 15... d4 {[%clk 0:01:29.4]} 16. Bf4 {[%clk 0:01:38.4]} 16... Bb7
{[%clk 0:01:28.3]} 17. Ne5 {[%clk 0:01:38.3]} 17... Qd5 {[%clk 0:01:17.9]} 18.
f3 {[%clk 0:01:35.4]} 18... Nxf4 {[%clk 0:01:13.8]} 19. Qxf4 {[%clk 0:01:36.3]}
19... Rae8 {[%clk 0:01:13.4]} 20. Rad1 {[%clk 0:01:12.8]} 20... Re7 {[%clk
0:01:06]} 21. Nd3 {[%clk 0:00:52.9]} 21... Rxe1+ {[%clk 0:00:59.4]} 22. Rxe1
{[%clk 0:00:51.8]} 22... Qc4 {[%clk 0:00:53.4]} 23. Ne5 {[%clk 0:00:38.1]} 23...
Qxa4 {[%clk 0:00:51.5]} 24. Nxf7 {[%clk 0:00:36.6]} 24... Qd7 {[%clk 0:00:43.6]}
25. Nh6+ {[%clk 0:00:17.1]} 25... gxh6 {[%clk 0:00:43.1]} 26. Qh4 {[%clk
0:00:17.6]} 26... Re8 {[%clk 0:00:37.5]} 27. Rd1 {[%clk 0:00:14.1]} 27... Qe6
{[%clk 0:00:35]} 28. Qg3+ {[%clk 0:00:13.2]} 28... Kh8 {[%clk 0:00:34.6]} 29. h4
{[%clk 0:00:13.5]} 29... Qe3+ {[%clk 0:00:31.1]} 30. Kh2 {[%clk 0:00:12.9]}
30... Rg8 {[%clk 0:00:31.5]} 31. Qd6 {[%clk 0:00:11.6]} 31... Qe8 {[%clk
0:00:22.8]} 32. Qf6+ {[%clk 0:00:11.5]} 32... Rg7 {[%clk 0:00:23.4]} 33. Re1
{[%clk 0:00:11.9]} 33... Qb8+ {[%clk 0:00:19.9]} 34. Kh1 {[%clk 0:00:11.3]}
34... Bxf3 {[%clk 0:00:18]} 35. Re7 {[%clk 0:00:07.2]} 35... Bxg2+ {[%clk
0:00:17.1]} 36. Kg1 {[%clk 0:00:07.7]} 36... Qg8 {[%clk 0:00:13.9]} 37. Rxg7
{[%clk 0:00:05.8]} 37... Qxg7 {[%clk 0:00:14]} 38. Qd8+ {[%clk 0:00:06.3]} 38...
Qg8 {[%clk 0:00:14.8]} 39. Qf6+ {[%clk 0:00:06.9]} 1/2-1/2

[Event "*** SCC Grand Prix: Titled Tuesday Blitz"]
[Site "Chess.com"]
[Date "2020.06.09"]
[Round "3"]
[White "babyking1205"]
[Black "Dmitry_Konenkin"]
[Result "0-1"]
[WhiteElo "2553"]
[BlackElo "2390"]
[TimeControl "180+1"]
[EndTime "9:29:19 PDT"]
[Termination "Dmitry_Konenkin won by resignation"]

1. e4 {[%clk 0:03:00.9]} 1... d6 {[%clk 0:02:59.9]} 2. d4 {[%clk 0:03:00.4]}
2... Nf6 {[%clk 0:02:58.9]} 3. Nc3 {[%clk 0:03:00.6]} 3... e5 {[%clk 0:02:58.8]}
4. dxe5 {[%clk 0:02:59.7]} 4... dxe5 {[%clk 0:02:59.7]} 5. Qxd8+ {[%clk
0:03:00]} 5... Kxd8 {[%clk 0:03:00.6]} 6. Bg5 {[%clk 0:03:00.6]} 6... Be6 {[%clk
0:03:00.6]} 7. O-O-O+ {[%clk 0:03:01.1]} 7... Nd7 {[%clk 0:03:00.8]} 8. Nf3
{[%clk 0:03:01.5]} 8... Bd6 {[%clk 0:03:00.8]} 9. Bb5 {[%clk 0:03:00.1]} 9...
Kc8 {[%clk 0:02:58.3]} 10. Bxd7+ {[%clk 0:02:54.2]} 10... Nxd7 {[%clk
0:02:51.1]} 11. Nb5 {[%clk 0:02:53.1]} 11... Bc5 {[%clk 0:02:49.3]} 12. Rhf1
{[%clk 0:02:40.6]} 12... f6 {[%clk 0:02:47.9]} 13. Be3 {[%clk 0:02:35.7]} 13...
Bxe3+ {[%clk 0:02:43.3]} 14. fxe3 {[%clk 0:02:36.6]} 14... Bc4 {[%clk
0:02:40.1]} 15. Nc3 {[%clk 0:02:24.6]} 15... Bxf1 {[%clk 0:02:39.9]} 16. Rxf1
{[%clk 0:02:25.5]} 16... c6 {[%clk 0:02:38.6]} 17. g4 {[%clk 0:02:25.7]} 17...
h6 {[%clk 0:02:37.7]} 18. Nh4 {[%clk 0:02:25.8]} 18... Kc7 {[%clk 0:02:34.9]}
19. Nf5 {[%clk 0:02:25.8]} 19... h5 {[%clk 0:02:23.8]} 20. gxh5 {[%clk
0:02:10.6]} 20... Rxh5 {[%clk 0:02:21.4]} 21. Nxg7 {[%clk 0:02:10.6]} 21... Rxh2
{[%clk 0:02:19.8]} 22. Nf5 {[%clk 0:02:08.3]} 22... Rg8 {[%clk 0:02:16.4]} 23.
Kb1 {[%clk 0:01:45.6]} 23... Rgg2 {[%clk 0:02:15.2]} 24. Rc1 {[%clk 0:01:45.7]}
24... b5 {[%clk 0:02:03.8]} 25. b4 {[%clk 0:01:42.5]} 25... a5 {[%clk
0:01:52.3]} 26. a3 {[%clk 0:01:41.9]} 26... axb4 {[%clk 0:01:51.8]} 27. axb4
{[%clk 0:01:41.9]} 27... Nb6 {[%clk 0:01:51.8]} 28. Kb2 {[%clk 0:01:40.7]} 28...
Nc4+ {[%clk 0:01:51.8]} 29. Kb3 {[%clk 0:01:40.4]} 29... Rh3 {[%clk 0:01:28.2]}
30. Rd1 {[%clk 0:01:28.5]} 30... Nxe3 {[%clk 0:01:21.9]} 31. Rd3 {[%clk
0:01:26.8]} 31... Nxf5 {[%clk 0:01:09.8]} 32. Rxh3 {[%clk 0:01:24.9]} 32... Nd4+
{[%clk 0:01:09.8]} 33. Kb2 {[%clk 0:01:19.2]} 33... Rxc2+ {[%clk 0:01:09.5]} 34.
Kb1 {[%clk 0:01:19.4]} 34... Rf2 {[%clk 0:01:04.9]} 35. Rh7+ {[%clk 0:00:58.3]}
35... Kb6 {[%clk 0:01:04.1]} 36. Rf7 {[%clk 0:00:37.4]} 36... Ne2 {[%clk
0:00:54.1]} 37. Nd1 {[%clk 0:00:31.5]} 37... Rf4 {[%clk 0:00:50.1]} 38. Kc2
{[%clk 0:00:30]} 38... Ng3 {[%clk 0:00:36.2]} 39. Kd3 {[%clk 0:00:12.7]} 39...
Nxe4 {[%clk 0:00:35.3]} 40. Ne3 {[%clk 0:00:11.2]} 40... Nd6 {[%clk 0:00:31.4]}
41. Rd7 {[%clk 0:00:10.4]} 41... Rd4+ {[%clk 0:00:29.3]} 42. Ke2 {[%clk
0:00:09.8]} 42... Nc4 {[%clk 0:00:28.4]} 43. Nxc4+ {[%clk 0:00:08.7]} 43... Rxc4
{[%clk 0:00:25.7]} 44. Rf7 {[%clk 0:00:08.9]} 44... Rxb4 {[%clk 0:00:25.1]} 45.
Rxf6 {[%clk 0:00:08.8]} 45... e4 {[%clk 0:00:25.2]} 46. Ke3 {[%clk 0:00:08]}
46... Rc4 {[%clk 0:00:25.4]} 47. Rf8 {[%clk 0:00:06.9]} 47... b4 {[%clk
0:00:24.2]} 48. Rb8+ {[%clk 0:00:07.1]} 48... Kc5 {[%clk 0:00:24.7]} 49. Rb7
{[%clk 0:00:07.7]} 49... Rc3+ {[%clk 0:00:21.6]} 50. Kxe4 {[%clk 0:00:07.9]}
50... Kc4 {[%clk 0:00:22.1]} 0-1

[Event "*** SCC Grand Prix: Titled Tuesday Blitz"]
[Site "Chess.com"]
[Date "2020.06.09"]
[Round "3"]
[White "Haykos"]
[Black "2346PL"]
[Result "1/2-1/2"]
[WhiteElo "2595"]
[BlackElo "2411"]
[TimeControl "180+1"]
[EndTime "9:29:20 PDT"]
[Termination "Game drawn by agreement"]

1. e4 {[%clk 0:03:00.9]} 1... c5 {[%clk 0:03:00]} 2. Nf3 {[%clk 0:02:55.1]} 2...
Nf6 {[%clk 0:03:00.4]} 3. e5 {[%clk 0:02:54.7]} 3... Nd5 {[%clk 0:03:00.5]} 4.
c4 {[%clk 0:02:54.3]} 4... e6 {[%clk 0:03:01]} 5. cxd5 {[%clk 0:02:54.3]} 5...
exd5 {[%clk 0:02:58.6]} 6. d4 {[%clk 0:02:54.2]} 6... d6 {[%clk 0:02:59.1]} 7.
Nc3 {[%clk 0:02:53.6]} 7... Be6 {[%clk 0:02:57.7]} 8. Bf4 {[%clk 0:02:49.9]}
8... Qb6 {[%clk 0:02:55.8]} 9. Bb5+ {[%clk 0:02:33.2]} 9... Nc6 {[%clk
0:02:55.6]} 10. exd6 {[%clk 0:02:32.4]} 10... O-O-O {[%clk 0:02:53.3]} 11. dxc5
{[%clk 0:02:30.7]} 11... Qxc5 {[%clk 0:02:53.2]} 12. Rc1 {[%clk 0:02:31.1]}
12... Qb4 {[%clk 0:02:49.3]} 13. O-O {[%clk 0:02:29]} 13... Qxf4 {[%clk
0:02:48.6]} 14. Bxc6 {[%clk 0:02:19.4]} 14... bxc6 {[%clk 0:02:48.9]} 15. Nxd5
{[%clk 0:02:20.1]} 15... Qxd6 {[%clk 0:02:43.3]} 16. Nc3 {[%clk 0:00:44.4]}
16... Qxd1 {[%clk 0:02:41.4]} 17. Rfxd1 {[%clk 0:00:45.3]} 17... Rxd1+ {[%clk
0:02:32.3]} 18. Rxd1 {[%clk 0:00:43.9]} 18... Be7 {[%clk 0:02:28.8]} 19. Nd4
{[%clk 0:00:40.6]} 19... Rd8 {[%clk 0:02:24.9]} 20. Nxe6 {[%clk 0:00:40.2]}
20... Rxd1+ {[%clk 0:02:24.5]} 21. Nxd1 {[%clk 0:00:41.1]} 21... fxe6 {[%clk
0:02:25.4]} 22. Kf1 {[%clk 0:00:37.7]} 22... Bf6 {[%clk 0:02:25.1]} 23. Ke2
{[%clk 0:00:38.2]} 23... Kc7 {[%clk 0:02:23.3]} 24. Kd3 {[%clk 0:00:37.9]} 24...
Kd6 {[%clk 0:02:18.1]} 25. Kc4 {[%clk 0:00:33.1]} 25... h5 {[%clk 0:02:11.7]}
26. b4 {[%clk 0:00:32.3]} 26... g5 {[%clk 0:02:06.8]} 27. a4 {[%clk 0:00:31.1]}
27... g4 {[%clk 0:01:59.9]} 28. Ne3 {[%clk 0:00:22.1]} 28... Bg5 {[%clk
0:01:54.9]} 29. Nc2 {[%clk 0:00:21.1]} 29... e5 {[%clk 0:01:49.7]} 30. Na3
{[%clk 0:00:20.5]} 30... a6 {[%clk 0:01:48.1]} 31. Nc2 {[%clk 0:00:19.9]} 31...
h4 {[%clk 0:01:41.7]} 32. h3 {[%clk 0:00:18.8]} 32... gxh3 {[%clk 0:01:15.9]}
33. gxh3 {[%clk 0:00:18.4]} 33... Bc1 {[%clk 0:01:02.9]} 34. Ne1 {[%clk
0:00:18.4]} 34... e4 {[%clk 0:00:59.5]} 35. Kd4 {[%clk 0:00:17.5]} 35... Bd2
{[%clk 0:00:59.7]} 36. Nc2 {[%clk 0:00:17.6]} 36... Bxb4 {[%clk 0:00:53.8]} 37.
Nxb4 {[%clk 0:00:16.1]} 37... c5+ {[%clk 0:00:54.3]} 38. Kc4 {[%clk 0:00:15.3]}
38... cxb4 {[%clk 0:00:54.6]} 39. Kxb4 {[%clk 0:00:16.2]} 39... Ke5 {[%clk
0:00:46.8]} 40. Ka5 {[%clk 0:00:10.5]} 40... Kf4 {[%clk 0:00:47]} 41. Kxa6
{[%clk 0:00:11.1]} 41... Kf3 {[%clk 0:00:47.6]} 42. Kb5 {[%clk 0:00:09.3]} 42...
Kxf2 {[%clk 0:00:48.1]} 43. a5 {[%clk 0:00:09.7]} 43... e3 {[%clk 0:00:48.8]}
44. a6 {[%clk 0:00:10.6]} 44... e2 {[%clk 0:00:49.4]} 45. a7 {[%clk 0:00:11.5]}
45... e1=Q {[%clk 0:00:50]} 46. a8=Q {[%clk 0:00:12.4]} 46... Qe2+ {[%clk
0:00:48.1]} 47. Kc5 {[%clk 0:00:12.3]} 47... Qe3+ {[%clk 0:00:48.1]} 48. Kc4
{[%clk 0:00:12.8]} 48... Qf4+ {[%clk 0:00:47.1]} 49. Kd3 {[%clk 0:00:11.5]}
49... Kg3 {[%clk 0:00:45.5]} 50. Qg8+ {[%clk 0:00:09.5]} 50... Kxh3 {[%clk
0:00:45.1]} 51. Ke2 {[%clk 0:00:10.2]} 51... Qe4+ {[%clk 0:00:39.9]} 52. Kf2
{[%clk 0:00:10]} 52... Qc2+ {[%clk 0:00:38.5]} 53. Kf3 {[%clk 0:00:08.5]} 53...
Qd1+ {[%clk 0:00:37.4]} 54. Kf2 {[%clk 0:00:08.8]} 54... Qd2+ {[%clk 0:00:37.5]}
55. Kf3 {[%clk 0:00:09]} 1/2-1/2

[Event "*** SCC Grand Prix: Titled Tuesday Blitz"]
[Site "Chess.com"]
[Date "2020.06.09"]
[Round "3"]
[White "Gordima"]
[Black "FairChess_on_YouTube"]
[Result "0-1"]
[WhiteElo "2723"]
[BlackElo "3032"]
[TimeControl "180+1"]
[EndTime "9:29:22 PDT"]
[Termination "FairChess_on_YouTube won on time"]

1. d4 {[%clk 0:03:00.9]} 1... d5 {[%clk 0:02:59.8]} 2. c4 {[%clk 0:03:00.8]}
2... c6 {[%clk 0:03:00.3]} 3. Nf3 {[%clk 0:03:00.8]} 3... Nf6 {[%clk 0:03:00.3]}
4. e3 {[%clk 0:03:01.2]} 4... Bf5 {[%clk 0:02:59.1]} 5. Nc3 {[%clk 0:03:00.9]}
5... a6 {[%clk 0:02:59.6]} 6. cxd5 {[%clk 0:02:49.7]} 6... cxd5 {[%clk 0:02:59]}
7. Ne5 {[%clk 0:02:49.6]} 7... Nc6 {[%clk 0:02:50.9]} 8. Qa4 {[%clk 0:02:29.2]}
8... Bd7 {[%clk 0:02:44]} 9. Nxd7 {[%clk 0:02:28.4]} 9... Qxd7 {[%clk
0:02:44.9]} 10. Bd2 {[%clk 0:02:24.6]} 10... e6 {[%clk 0:02:44.2]} 11. Bd3
{[%clk 0:02:18.6]} 11... Bd6 {[%clk 0:02:33.7]} 12. O-O {[%clk 0:02:10.8]} 12...
O-O {[%clk 0:02:33.7]} 13. Rfc1 {[%clk 0:02:10.3]} 13... Rfc8 {[%clk 0:02:32.5]}
14. Qd1 {[%clk 0:02:03]} 14... e5 {[%clk 0:02:27.7]} 15. dxe5 {[%clk 0:02:01.9]}
15... Nxe5 {[%clk 0:02:25.3]} 16. Bf1 {[%clk 0:01:55.4]} 16... Nc4 {[%clk
0:02:21.9]} 17. Be1 {[%clk 0:01:35.3]} 17... Be5 {[%clk 0:02:07.5]} 18. Rab1
{[%clk 0:01:25.3]} 18... b5 {[%clk 0:02:05.9]} 19. g3 {[%clk 0:01:10.4]} 19...
Rd8 {[%clk 0:01:53.4]} 20. Bg2 {[%clk 0:01:09.2]} 20... Rac8 {[%clk 0:01:53.1]}
21. Rc2 {[%clk 0:01:05.3]} 21... h5 {[%clk 0:01:48.8]} 22. h3 {[%clk 0:01:03.1]}
22... Qf5 {[%clk 0:01:44]} 23. Rbc1 {[%clk 0:00:48.4]} 23... Bxg3 {[%clk
0:01:37.5]} 24. fxg3 {[%clk 0:00:45.9]} 24... Nxe3 {[%clk 0:01:37.6]} 25. Rf2
{[%clk 0:00:39.9]} 25... Nxd1 {[%clk 0:01:08.4]} 26. Rxf5 {[%clk 0:00:39.2]}
26... Nxb2 {[%clk 0:01:08.9]} 27. Rb1 {[%clk 0:00:34.2]} 27... Nd3 {[%clk
0:01:07.8]} 28. Nxd5 {[%clk 0:00:33]} 28... Nxd5 {[%clk 0:01:00.4]} 29. Bxd5
{[%clk 0:00:31.6]} 29... Rd7 {[%clk 0:01:00.4]} 30. Rxh5 {[%clk 0:00:23.1]}
30... g6 {[%clk 0:00:50.3]} 31. Rg5 {[%clk 0:00:22.9]} 31... Rc5 {[%clk
0:00:50.9]} 32. Rxg6+ {[%clk 0:00:20.5]} 32... Kh7 {[%clk 0:00:46]} 33. Bxf7
{[%clk 0:00:15.8]} 33... Rxf7 {[%clk 0:00:43.2]} 34. Rxa6 {[%clk 0:00:15.8]}
34... Rf3 {[%clk 0:00:35]} 35. Kg2 {[%clk 0:00:06.4]} 35... Re3 {[%clk
0:00:32.4]} 36. Ba5 {[%clk 0:00:05]} 36... Rc2+ {[%clk 0:00:30.9]} 37. Kh1
{[%clk 0:00:01.9]} 37... Nf2+ {[%clk 0:00:27.7]} 38. Kg2 {[%clk 0:00:01.5]}
38... Ne4+ {[%clk 0:00:25.9]} 39. Kg1 {[%clk 0:00:01.9]} 39... Rxg3+ {[%clk
0:00:22.3]} 40. Kh1 {[%clk 0:00:02.4]} 40... Rxh3+ {[%clk 0:00:18.2]} 41. Kg1
{[%clk 0:00:02.7]} 41... Rg3+ {[%clk 0:00:18.2]} 42. Kh1 {[%clk 0:00:03.1]}
42... Rgg2 {[%clk 0:00:10.2]} 43. Ra7+ {[%clk 0:00:02.9]} 43... Kg6 {[%clk
0:00:09.9]} 44. Be1 {[%clk 0:00:02.2]} 44... Rge2 {[%clk 0:00:06.8]} 45. Ra6+
{[%clk 0:00:01.7]} 45... Kf5 {[%clk 0:00:06.7]} 0-1

[Event "*** SCC Grand Prix: Titled Tuesday Blitz"]
[Site "Chess.com"]
[Date "2020.06.09"]
[Round "3"]
[White "pheonixking2000"]
[Black "Natalya_Buksa"]
[Result "1-0"]
[WhiteElo "2761"]
[BlackElo "2562"]
[TimeControl "180+1"]
[EndTime "9:29:23 PDT"]
[Termination "pheonixking2000 won by resignation"]

1. c4 {[%clk 0:03:00.9]} 1... e6 {[%clk 0:02:58.6]} 2. Nc3 {[%clk 0:02:58.4]}
2... d5 {[%clk 0:02:58.6]} 3. d4 {[%clk 0:02:59]} 3... Nf6 {[%clk 0:02:58.5]} 4.
cxd5 {[%clk 0:02:59.6]} 4... exd5 {[%clk 0:02:59.4]} 5. Bg5 {[%clk 0:02:59.3]}
5... Nbd7 {[%clk 0:03:00.1]} 6. e3 {[%clk 0:02:58.7]} 6... c6 {[%clk 0:03:00.6]}
7. Bd3 {[%clk 0:02:58.1]} 7... Be7 {[%clk 0:03:00.7]} 8. Nge2 {[%clk 0:02:58.3]}
8... Nh5 {[%clk 0:02:57.7]} 9. Bxe7 {[%clk 0:02:47]} 9... Qxe7 {[%clk
0:02:58.6]} 10. Rb1 {[%clk 0:02:43.3]} 10... a5 {[%clk 0:02:57.6]} 11. Qc2
{[%clk 0:02:43.3]} 11... b5 {[%clk 0:02:49.3]} 12. a3 {[%clk 0:02:39.7]} 12...
Nb6 {[%clk 0:02:47.7]} 13. O-O {[%clk 0:02:35.3]} 13... f5 {[%clk 0:02:41.5]}
14. Bxf5 {[%clk 0:02:31.5]} 14... g6 {[%clk 0:02:33.9]} 15. Bxc8 {[%clk
0:02:26.3]} 15... Rxc8 {[%clk 0:02:34.8]} 16. Rbc1 {[%clk 0:02:11.2]} 16... O-O
{[%clk 0:02:33.8]} 17. a4 {[%clk 0:02:08.1]} 17... b4 {[%clk 0:02:20.5]} 18. Nb1
{[%clk 0:02:08.3]} 18... Nf6 {[%clk 0:01:58.1]} 19. Nd2 {[%clk 0:02:04.3]} 19...
Rc7 {[%clk 0:01:52.9]} 20. Nb3 {[%clk 0:02:00.9]} 20... Ra8 {[%clk 0:01:51.9]}
21. Nf4 {[%clk 0:01:54.5]} 21... Nxa4 {[%clk 0:01:47]} 22. Ra1 {[%clk
0:01:54.3]} 22... Nb6 {[%clk 0:01:45.9]} 23. Rxa5 {[%clk 0:01:54.9]} 23... Rac8
{[%clk 0:01:36]} 24. Nd3 {[%clk 0:01:49.4]} 24... Nc4 {[%clk 0:01:35.5]} 25.
Raa1 {[%clk 0:01:49.8]} 25... Ng4 {[%clk 0:01:32.7]} 26. h3 {[%clk 0:01:47.3]}
26... Nf6 {[%clk 0:01:25.6]} 27. Na5 {[%clk 0:01:47.7]} 27... Nxa5 {[%clk
0:01:04.7]} 28. Rxa5 {[%clk 0:01:48.6]} 28... Ne4 {[%clk 0:01:02.9]} 29. Rc1
{[%clk 0:01:48.8]} 29... Kh8 {[%clk 0:00:37.2]} 30. Qb3 {[%clk 0:01:48.4]} 30...
Rb8 {[%clk 0:00:32.9]} 31. Ne5 {[%clk 0:01:47.4]} 31... Qf6 {[%clk 0:00:30.5]}
32. f3 {[%clk 0:01:41.7]} 32... Ng3 {[%clk 0:00:29.6]} 33. Qd3 {[%clk
0:01:35.3]} 33... Rbc8 {[%clk 0:00:20.7]} 34. Qd2 {[%clk 0:01:23.3]} 34... c5
{[%clk 0:00:20.3]} 35. Raxc5 {[%clk 0:01:10.9]} 35... Rxc5 {[%clk 0:00:20]} 36.
Rxc5 {[%clk 0:01:11.8]} 36... Rxc5 {[%clk 0:00:20]} 37. Nd7 {[%clk 0:01:12.5]}
37... Rc1+ {[%clk 0:00:17.6]} 38. Qxc1 {[%clk 0:01:12.1]} 38... Qe7 {[%clk
0:00:06.3]} 39. Qe1 {[%clk 0:01:03.4]} 39... Nf5 {[%clk 0:00:05.5]} 40. Ne5
{[%clk 0:01:03.9]} 40... Kg7 {[%clk 0:00:05.1]} 41. g4 {[%clk 0:00:54.8]} 41...
Nh4 {[%clk 0:00:04.2]} 42. f4 {[%clk 0:00:48.8]} 42... g5 {[%clk 0:00:03.5]} 43.
Qf2 {[%clk 0:00:42.6]} 43... Qc7 {[%clk 0:00:02.6]} 44. fxg5 {[%clk 0:00:41.1]}
44... Ng6 {[%clk 0:00:01.1]} 45. Qf6+ {[%clk 0:00:36.3]} 45... Kg8 {[%clk
0:00:01.5]} 46. Nxg6 {[%clk 0:00:29.2]} 46... hxg6 {[%clk 0:00:02.4]} 47. Qxg6+
{[%clk 0:00:27.8]} 47... Kf8 {[%clk 0:00:03]} 48. Qf6+ {[%clk 0:00:28.4]} 48...
Kg8 {[%clk 0:00:03.4]} 49. Qe6+ {[%clk 0:00:27.4]} 49... Kf8 {[%clk 0:00:03.6]}
50. Qf5+ {[%clk 0:00:28]} 50... Kg8 {[%clk 0:00:03.6]} 51. Qxd5+ {[%clk
0:00:28.3]} 51... Kf8 {[%clk 0:00:02.9]} 52. Qc5+ {[%clk 0:00:28.4]} 52... Qxc5
{[%clk 0:00:02.5]} 53. dxc5 {[%clk 0:00:29.3]} 1-0

[Event "*** SCC Grand Prix: Titled Tuesday Blitz"]
[Site "Chess.com"]
[Date "2020.06.09"]
[Round "3"]
[White "TomsKantans"]
[Black "MFBerna"]
[Result "1-0"]
[WhiteElo "2633"]
[BlackElo "2420"]
[TimeControl "180+1"]
[EndTime "9:29:23 PDT"]
[Termination "TomsKantans won on time"]

1. e4 {[%clk 0:03:00.9]} 1... c5 {[%clk 0:02:58.8]} 2. Nf3 {[%clk 0:03:00]} 2...
d6 {[%clk 0:02:58.6]} 3. d4 {[%clk 0:02:59.3]} 3... cxd4 {[%clk 0:02:59.5]} 4.
Nxd4 {[%clk 0:03:00.2]} 4... Nf6 {[%clk 0:02:59]} 5. Nc3 {[%clk 0:03:00.7]} 5...
Nc6 {[%clk 0:02:59.4]} 6. f4 {[%clk 0:02:57.1]} 6... g6 {[%clk 0:02:47.3]} 7.
Be3 {[%clk 0:02:53.1]} 7... Bg7 {[%clk 0:02:47.4]} 8. Qd2 {[%clk 0:02:30.6]}
8... O-O {[%clk 0:02:45.2]} 9. O-O-O {[%clk 0:02:28.7]} 9... Bd7 {[%clk
0:02:31.6]} 10. Kb1 {[%clk 0:02:17.5]} 10... Rc8 {[%clk 0:02:31.2]} 11. h4
{[%clk 0:02:09.1]} 11... Bg4 {[%clk 0:02:22.4]} 12. Re1 {[%clk 0:01:43.5]} 12...
h5 {[%clk 0:02:11.4]} 13. f5 {[%clk 0:01:35.1]} 13... Ne5 {[%clk 0:02:03.8]} 14.
Bh6 {[%clk 0:01:26.3]} 14... a6 {[%clk 0:01:18]} 15. Nd5 {[%clk 0:00:54]} 15...
Nxd5 {[%clk 0:01:10.6]} 16. exd5 {[%clk 0:00:54.3]} 16... Qb6 {[%clk 0:00:34.1]}
17. Bxg7 {[%clk 0:00:23.3]} 17... Kxg7 {[%clk 0:00:35]} 18. Re4 {[%clk
0:00:22.6]} 18... Rc5 {[%clk 0:00:23.7]} 19. Nb3 {[%clk 0:00:21.6]} 19... Rc7
{[%clk 0:00:18.7]} 20. fxg6 {[%clk 0:00:21.9]} 20... fxg6 {[%clk 0:00:18.6]} 21.
Bd3 {[%clk 0:00:18.5]} 21... Rf2 {[%clk 0:00:18.2]} 22. Qg5 {[%clk 0:00:16.3]}
22... Bf5 {[%clk 0:00:13.9]} 23. g4 {[%clk 0:00:15.3]} 23... Bxg4 {[%clk
0:00:10.5]} 24. Rxe5 {[%clk 0:00:14.7]} 24... dxe5 {[%clk 0:00:09.6]} 25. Qxe5+
{[%clk 0:00:15.6]} 25... Qf6 {[%clk 0:00:09.7]} 26. Qxc7 {[%clk 0:00:15.6]}
26... Bf5 {[%clk 0:00:07.4]} 27. Bxf5 {[%clk 0:00:15.1]} 27... Qxf5 {[%clk
0:00:08.3]} 28. a4 {[%clk 0:00:14.6]} 28... Kh6 {[%clk 0:00:07.6]} 29. Re1
{[%clk 0:00:13.1]} 29... Rf1 {[%clk 0:00:07.4]} 30. Rxf1 {[%clk 0:00:12.9]}
30... Qxf1+ {[%clk 0:00:08.3]} 31. Ka2 {[%clk 0:00:13.5]} 31... Qf2 {[%clk
0:00:07.5]} 32. c4 {[%clk 0:00:12.2]} 32... Qxh4 {[%clk 0:00:06.6]} 33. Na5
{[%clk 0:00:10.2]} 33... Qd4 {[%clk 0:00:06]} 34. Nxb7 {[%clk 0:00:08.8]} 34...
h4 {[%clk 0:00:06.2]} 35. Nd8 {[%clk 0:00:06.9]} 35... h3 {[%clk 0:00:05.9]} 36.
Ne6 {[%clk 0:00:07.4]} 36... Qf6 {[%clk 0:00:03.9]} 37. Qg3 {[%clk 0:00:06.2]}
37... Qf5 {[%clk 0:00:03.7]} 38. Nf4 {[%clk 0:00:04.6]} 38... Qe4 {[%clk
0:00:02.6]} 39. Qxh3+ {[%clk 0:00:04.9]} 39... Kg7 {[%clk 0:00:02.6]} 40. Ne6+
{[%clk 0:00:04.3]} 40... Kf6 {[%clk 0:00:02.5]} 41. Qc3+ {[%clk 0:00:05.2]}
41... Kf5 {[%clk 0:00:01.4]} 42. Nd4+ {[%clk 0:00:05.1]} 42... Kg5 {[%clk
0:00:01.2]} 43. Nb3 {[%clk 0:00:06]} 1-0